bitfinex/quotes_ETHUSD_20230103
["timestamp","ask_amount","ask_price","bid_price","bid_amount"]
[1672756753120,8.68013179,1218.5,1218.4,4.29487772]
[1672756753332,8.68013179,1218.5,1218.4,14.14385772]
[1672756753580,5.0,1218.5,1218.4,24.09183772]
[1672756753767,5.0,1218.5,1218.4,36.04761975]
[1672756754790,5.0,1218.5,1218.4,35.55381772]
[1672756755007,8.06558021,1218.5,1218.4,35.55381772]
[1672756757328,5.0,1218.5,1218.4,35.55381772]
[1672756758083,8.06558021,1218.5,1218.4,35.55381772]
[1672756758429,5.0,1218.5,1218.4,35.55381772]
[1672756759433,3.13931344,1218.6,1218.4,35.55381772]
[1672756759678,3.07331344,1218.6,1218.5,9.232]
[1672756759801,8.07331344,1218.6,1218.5,43.03229177]
[1672756760339,5.00773323,1218.6,1218.5,43.03229177]
[1672756760552,8.07331344,1218.6,1218.5,43.03229177]
[1672756760808,5.00773323,1218.6,1218.5,43.03229177]
[1672756761115,8.07331344,1218.6,1218.5,43.03229177]
[1672756761263,5.00773323,1218.6,1218.5,43.03229177]
[1672756761474,5.00773323,1218.6,1218.5,48.79715291]
[1672756761751,5.00773323,1218.6,1218.5,56.06915291]
[1672756761966,0.00773323,1218.6,1218.5,56.58695494]
[1672756762873,0.00773323,1218.6,1218.5,56.09315291]
[1672756763089,0.00856546,1218.8,1218.5,56.9947092]
[1672756763340,5.00856546,1218.8,1218.7,44.1982]
[1672756763578,0.00856546,1218.8,1218.7,49.85910611]
[1672756764499,0.00856546,1218.8,1218.7,54.00796725]
[1672756766205,0.00856546,1218.8,1218.7,49.85910611]
[1672756766504,0.00856546,1218.8,1218.7,8.87190611]
[1672756767040,0.00856546,1218.8,1218.7,18.71845611]
[1672756767349,0.00856546,1218.8,1218.7,28.56500611]
[1672756767729,0.00856546,1218.8,1218.7,18.71845611]
[1672756768361,0.00856546,1218.8,1218.7,28.56500611]
[1672756768775,0.00856546,1218.8,1218.7,38.41155611]
[1672756770271,0.00856546,1218.8,1218.7,8.87190611]
[1672756770479,0.00856546,1218.8,1218.7,3.31]
[1672756770648,0.00856546,1218.8,1218.7,3.211]
[1672756770862,0.00856546,1218.8,1218.7,9.211]
[1672756771074,0.00856546,1218.8,1218.7,9.31]
[1672756771336,0.00856546,1218.8,1218.7,29.0031]
[1672756771542,0.00856546,1218.8,1218.7,25.078123]
[1672756771953,0.00856546,1218.8,1218.7,34.924673]
[1672756772599,0.00856546,1218.8,1218.7,44.771223]
[1672756774724,0.00856546,1218.8,1218.7,44.787223]
[1672756775294,0.00856546,1218.8,1218.7,15.247573]
[1672756775542,5.00856546,1218.8,1218.7,25.094123]
[1672756775737,5.00856546,1218.8,1218.7,34.940673]
[1672756776288,5.00856546,1218.8,1218.7,44.787223]
[1672756776923,5.00856546,1218.8,1218.7,34.940673]
[1672756779019,5.00856546,1218.8,1218.7,3.326]
[1672756779229,5.00856546,1218.8,1218.7,32.76665]
[1672756779445,5.00856546,1218.8,1218.7,32.86565]
[1672756780621,5.00856546,1218.8,1218.7,21.4041]
[1672756781202,8.07414567,1218.8,1218.7,11.55755]
[1672756781398,0.00856546,1218.8,1218.7,21.4041]
[1672756782085,5.00856546,1218.8,1218.7,21.4041]
[1672756782294,8.07414567,1218.8,1218.7,11.55755]
[1672756782975,8.07414567,1218.8,1218.7,1.711]
[1672756783190,38.83259114,1218.8,1218.6,1.703]
[1672756783431,3.68156162,1218.7,1218.5,21.39495]
[1672756783621,3.68156162,1218.7,1218.5,31.24281]
[1672756784384,5.0,1218.6,1218.5,31.24281]
[1672756785284,8.06556162,1218.6,1218.5,31.24281]
[1672756785602,8.06556162,1218.6,1218.5,31.2390067]
[1672756785854,8.06556162,1218.6,1218.5,31.2550067]
[1672756786822,5.0,1218.6,1218.5,37.12979067]
[1672756788060,3.13156162,1218.7,1218.5,37.12979067]
[1672756788270,3.06556162,1218.7,1218.6,38.77408]
[1672756788480,8.06556162,1218.7,1218.6,38.87308]
[1672756789162,8.06556162,1218.7,1218.6,3.331]
[1672756789382,8.06556162,1218.7,1218.6,3.232]
[1672756789383,8.67080568,1218.7,1218.6,3.232]
[1672756793844,8.67080568,1218.7,1218.6,13.07936]
[1672756794112,8.67080568,1218.7,1218.6,13.17836]
[1672756795003,8.67080568,1218.7,1218.6,3.331]
[1672756795211,8.67080568,1218.7,1218.6,3.232]
[1672756795212,5.0,1218.7,1218.6,3.232]
[1672756795430,28.84196114,1218.7,1218.5,0.099]
[1672756795663,28.84196114,1218.7,1218.4,5.47430621]
[1672756795664,7.49270644,1218.6,1218.4,1.71318296]
[1672756795842,7.49270644,1218.6,1218.4,0.01118296]
[1672756795843,19.15187217,1218.5,1218.4,0.01118296]
[1672756796225,9.30370217,1218.5,1218.4,0.01118296]
[1672756796892,19.15187217,1218.5,1218.4,0.01118296]
[1672756797800,18.53576794,1218.5,1218.4,0.01118296]
[1672756797952,8.68759794,1218.5,1218.4,3.24118296]
[1672756798157,8.68759794,1218.5,1218.4,32.78812296]
[1672756798369,8.68759794,1218.5,1218.4,37.76078626]
[1672756798889,5.0,1218.5,1218.4,37.76078626]
[1672756799558,8.07287229,1218.5,1218.4,38.25458829]
[1672756799841,8.07487229,1218.5,1218.4,38.25158829]
[1672756800084,3.07287229,1218.5,1218.4,39.86058829]
[1672756800510,3.13887229,1218.6,1218.4,51.28144943]
[1672756800720,3.07287229,1218.6,1218.5,4.837]
[1672756801046,3.07287229,1218.6,1218.5,40.17400688]
[1672756801270,3.13887229,1218.7,1218.5,40.76680891]
[1672756801423,3.07287229,1218.7,1218.6,40.37708]
[1672756801638,3.07287229,1218.7,1218.6,46.13713489]
[1672756801849,11.75998936,1218.7,1218.6,46.63093692]
[1672756802066,8.68759794,1218.7,1218.6,46.63093692]
[1672756802924,5.0,1218.7,1218.6,46.63093692]
[1672756804296,8.68759794,1218.7,1218.6,46.63093692]
[1672756804685,8.68759794,1218.7,1218.6,40.63093692]
[1672756805976,9.30370217,1218.7,1218.6,3.82480203]
[1672756806183,38.84335217,1218.7,1218.6,3.232]
[1672756806435,9.30370217,1218.7,1218.6,22.92672]
[1672756806791,8.68827848,1218.7,1218.6,23.02572]
[1672756807129,5.0,1218.7,1218.6,23.02572]
[1672756807340,8.68837652,1218.7,1218.6,23.02572]
[1672756807607,8.68837652,1218.7,1218.6,32.87308]
[1672756807806,28.99645309,1218.7,1218.6,3.331]
[1672756808033,28.99645309,1218.7,1218.6,3.232]
[1672756808198,19.14990309,1218.7,1218.6,1.66485169]
[1672756808407,9.30335309,1218.7,1218.6,1.66485169]
[1672756809074,29.77670644,1218.7,1218.6,1.616]
[1672756809288,30.39270644,1218.7,1218.6,1.616]
[1672756809756,19.76630575,1218.7,1218.6,1.616]
[1672756809967,9.91975575,1218.7,1218.6,11.46336]
[1672756810243,9.91975575,1218.7,1218.6,3.331]
[1672756810439,9.91975575,1218.7,1218.6,3.232]
[1672756811596,9.92175575,1218.7,1218.6,13.07936]
[1672756811739,9.91975575,1218.7,1218.6,23.02572]
[1672756812955,9.91975575,1218.7,1218.6,13.17836]
[1672756813137,11.42754852,1218.7,1218.6,13.17836]
[1672756813734,11.42954852,1218.7,1218.6,32.87008]
[1672756813928,9.91975575,1218.7,1218.6,21.40972]
[1672756814937,9.91975575,1218.7,1218.6,31.25708]
[1672756815358,9.91975575,1218.7,1218.6,21.40972]
[1672756815729,5.0,1218.7,1218.6,31.25708]
[1672756815925,8.68999953,1218.7,1218.6,31.25708]
[1672756816366,8.68999953,1218.7,1218.6,21.40972]
[1672756816723,5.0,1218.7,1218.6,21.40972]
[1672756817128,9.30375575,1218.7,1218.6,11.56236]
[1672756817756,9.30375575,1218.7,1218.6,1.715]
[1672756818097,9.30375575,1218.7,1218.6,1.616]
[1672756818244,28.99685575,1218.7,1218.6,1.616]
[1672756818719,9.30375575,1218.7,1218.6,1.616]
[1672756818875,19.15030575,1218.7,1218.6,1.616]
[1672756819084,9.30375575,1218.7,1218.6,1.616]
[1672756819751,9.30375575,1218.7,1218.6,21.31072]
[1672756819963,9.30375575,1218.7,1218.6,11.56236]
[1672756820176,9.30375575,1218.7,1218.6,1.715]
[1672756820456,9.30575575,1218.7,1218.6,11.46336]
[1672756820828,9.30375575,1218.7,1218.6,1.715]
[1672756820998,9.30375575,1218.7,1218.6,2.10980203]
[1672756822273,9.30375575,1218.7,1218.6,11.95716203]
[1672756822441,9.30375575,1218.7,1218.6,21.90352203]
[1672756823340,10.81154852,1218.7,1218.6,21.90352203]
[1672756823664,9.30375575,1218.7,1218.6,21.90352203]
[1672756823876,9.30375575,1218.7,1218.6,20.28752203]
[1672756825851,9.30375575,1218.7,1218.6,19.79372]
[1672756826029,9.30375575,1218.7,1218.6,9.94636]
[1672756826823,5.0,1218.7,1218.6,9.94636]
[1672756826974,8.6911222,1218.7,1218.6,37.73788203]
[1672756827337,8.6931222,1218.7,1218.6,42.49342323]
[1672756827553,8.6911222,1218.7,1218.6,24.41770323]
[1672756827755,9.30375575,1218.7,1218.6,29.50652203]
[1672756828117,9.30375575,1218.7,1218.6,33.35388203]
[1672756828369,9.30375575,1218.7,1218.6,23.50652203]
[1672756828705,9.30375575,1218.7,1218.6,3.81180203]
[1672756828871,24.6931,1218.7,1218.6,2.10980203]
[1672756829084,30.39270644,1218.7,1218.4,1.71618296]
[1672756829295,4.30751123,1218.6,1218.4,1.61718296]
[1672756829519,4.30751123,1218.5,1218.4,2.11098499]
[1672756829736,14.22092123,1218.6,1218.4,2.11098499]
[1672756829947,4.30751123,1218.6,1218.4,1.61718296]
[1672756830158,4.30751123,1218.6,1218.4,11.46609296]
[1672756830491,4.30751123,1218.6,1218.4,11.56509296]
[1672756830911,5.0,1218.5,1218.4,11.56509296]
[1672756831377,5.0,1218.5,1218.4,21.41407296]
[1672756831594,5.0,1218.5,1218.4,21.4103964]
[1672756831940,5.0,1218.5,1218.4,31.2593764]
[1672756831941,8.69128512,1218.5,1218.4,31.2593764]
[1672756835949,8.69128512,1218.5,1218.4,32.8753764]
[1672756836357,8.07550294,1218.5,1218.4,36.99765355]
[1672756836541,3.07556645,1218.5,1218.4,36.99765355]
[1672756836755,3.07556645,1218.5,1218.4,38.60765355]
[1672756837168,3.75728512,1218.6,1218.4,42.75651469]
[1672756837394,3.0765116,1218.5,1218.4,46.16642662]
[1672756837626,3.0765116,1218.5,1218.4,42.75951469]
[1672756837885,3.1425116,1218.6,1218.5,6.0]
[1672756838031,8.0765116,1218.6,1218.5,25.64916479]
[1672756838237,8.0765116,1218.6,1218.5,49.05471583]
[1672756838454,3.0765116,1218.6,1218.5,49.05471583]
[1672756839321,3.1425116,1218.7,1218.5,57.29839476]
[1672756839542,2.74198606,1218.8,1218.6,23.11654007]
[1672756839693,0.064,1218.9,1218.8,6.0]
[1672756839903,3.70116229,1219.0,1218.8,49.86082114]
[1672756840141,3.70116229,1219.0,1218.9,4.14886114]
[1672756840404,3.70116229,1219.0,1218.9,23.83874114]
[1672756840575,0.00987717,1219.0,1218.9,24.43154317]
[1672756840908,0.00987717,1219.0,1218.9,29.46684549]
[1672756841092,7.17e-06,1219.0,1218.9,40.90762749]
[1672756841301,0.00977147,1219.1,1219.0,6.0]
[1672756841516,3.69128512,1219.3,1219.0,54.30997122]
[1672756841685,3.69128512,1219.3,1219.2,34.37053]
[1672756841906,3.69128512,1219.3,1219.2,38.61839114]
[1672756842143,3.75728512,1219.4,1219.2,38.61839114]
[1672756842314,3.69128512,1219.4,1219.3,3.232]
[1672756842686,4.30751123,1219.4,1219.3,3.232]
[1672756842915,4.30751123,1219.4,1219.3,1.616]
[1672756844261,14.14841123,1219.4,1219.3,1.616]
[1672756844474,3.67589131,1219.4,1219.3,1.616]
[1672756844625,3.67589131,1219.4,1219.3,11.45771]
[1672756844838,8.67589131,1219.4,1219.3,11.55671]
[1672756845360,8.67589131,1219.4,1219.3,1.715]
[1672756845570,8.67589131,1219.4,1219.3,1.616]
[1672756846061,5.0,1219.4,1219.3,1.616]
[1672756846410,5.0,1219.4,1219.3,11.45771]
[1672756846616,5.0,1219.4,1219.3,31.24013]
[1672756846617,8.06027921,1219.4,1219.3,31.24013]
[1672756847407,8.06027921,1219.4,1219.3,21.39842]
[1672756847829,8.06027921,1219.4,1219.3,31.24013]
[1672756848051,8.06027921,1219.4,1219.3,32.58993351]
[1672756848619,5.0,1219.4,1219.3,32.58993351]
[1672756848884,3.12627921,1219.5,1219.3,32.58993351]
[1672756849039,3.06027921,1219.4,1219.3,30.97393351]
[1672756849248,3.06027921,1219.4,1219.3,21.39842]
[1672756850359,3.06027921,1219.4,1219.3,31.24013]
[1672756850762,3.12627921,1219.5,1219.3,31.24013]
[1672756850974,3.06027921,1219.5,1219.3,31.24013]
[1672756854353,15.24087921,1219.6,1219.4,4.845]
[1672756854519,5.0,1219.5,1219.4,15.36749932]
[1672756854730,12.1806,1219.6,1219.5,6.0]
[1672756855068,12.1146,1219.6,1219.5,38.83727]
[1672756855240,0.6815,1219.7,1219.5,38.83727]
[1672756855450,0.6155,1219.7,1219.6,3.216]
[1672756855664,0.6155,1219.7,1219.6,32.73387]
[1672756855910,0.6155,1219.7,1219.6,32.83287]
[1672756856132,3.68468151,1219.8,1219.6,32.83287]
[1672756856317,3.68468151,1219.8,1219.7,1.616]
[1672756856533,3.68468151,1219.8,1219.7,21.29296]
[1672756856865,8.68468151,1219.8,1219.7,21.39196]
[1672756857963,8.68468151,1219.8,1219.7,11.55348]
[1672756858229,5.6244023,1219.8,1219.7,11.55348]
[1672756858774,5.6244023,1219.8,1219.7,31.23044]
[1672756858911,5.6244023,1219.8,1219.7,21.39196]
[1672756859127,5.6244023,1219.8,1219.7,31.23044]
[1672756859475,5.6244023,1219.8,1219.7,21.39196]
[1672756860232,5.6244023,1219.8,1219.7,11.55348]
[1672756860590,5.6244023,1219.8,1219.7,21.39196]
[1672756860852,5.6244023,1219.8,1219.7,31.23044]
[1672756861047,5.0089023,1219.8,1219.7,39.64780614]
[1672756861260,5.0089023,1219.8,1219.7,41.26380614]
[1672756863907,0.0089023,1219.8,1219.7,41.26380614]
[1672756865624,0.0089023,1219.8,1219.7,43.37360817]
[1672756866690,2.3e-06,1219.8,1219.7,43.37360817]
[1672756867008,0.066,1220.0,1219.7,43.60360817]
[1672756867155,0.0283392,1220.1,1219.9,32.72961]
[1672756867359,0.0283392,1220.1,1220.0,9.219]
[1672756867612,0.0283392,1220.1,1220.0,28.99012]
[1672756867798,0.0283392,1220.1,1220.0,22.99012]
[1672756868012,5.0283392,1220.1,1220.0,13.15406]
[1672756868577,5.0283392,1220.1,1220.0,22.99012]
[1672756869692,5.0283392,1220.1,1220.0,32.82618]
[1672756870580,5.0283392,1220.1,1220.0,1.715]
[1672756870727,5.0283392,1220.1,1220.0,1.616]
[1672756872152,14.8635892,1220.1,1220.0,1.616]
[1672756872726,5.0283392,1220.1,1220.0,11.45206]
[1672756872927,5.0283392,1220.1,1220.0,11.55106]
[1672756873269,5.0283392,1220.1,1220.0,1.715]
[1672756873476,24.6988392,1220.1,1220.0,1.616]
[1672756873684,14.8635892,1220.1,1220.0,1.616]
[1672756873912,15.18016149,1220.1,1220.0,1.616]
[1672756874104,34.85066149,1220.1,1219.9,1.615]
[1672756874311,20.28811,1220.0,1219.8,1.616]
[1672756874565,30.12468,1220.0,1219.8,1.616]
[1672756874962,20.28811,1220.0,1219.8,1.616]
[1672756875174,14.83687,1219.9,1219.8,1.616]
[1672756876140,24.67374,1219.9,1219.8,1.616]
[1672756876352,14.83687,1219.9,1219.8,1.616]
[1672756876582,5.0,1219.9,1219.8,1.616]
[1672756876738,14.83687,1219.9,1219.8,1.616]
[1672756877668,5.0,1219.9,1219.8,1.616]
[1672756878092,14.83687,1219.9,1219.8,1.616]
[1672756878343,17.89714921,1219.9,1219.8,1.616]
[1672756878666,8.06027921,1219.9,1219.8,1.616]
[1672756879233,27.73401921,1219.9,1219.8,1.616]
[1672756879466,8.06027921,1219.9,1219.8,1.616]
[1672756880143,37.57088921,1219.9,1219.7,1.712]
[1672756880448,37.57088921,1219.9,1219.7,1.613]
[1672756880665,3.06027921,1219.8,1219.7,1.613]
[1672756880851,8.06027921,1219.8,1219.7,1.613]
[1672756881513,5.0,1219.8,1219.7,31.12844]
[1672756881700,5.0,1219.8,1219.7,31.22744]
[1672756882257,5.0,1219.8,1219.7,34.99107355]
[1672756883578,8.06027921,1219.8,1219.7,34.99107355]
[1672756884477,5.0,1219.8,1219.7,34.99107355]
[1672756884769,2.94027921,1219.9,1219.7,34.99107355]
[1672756884987,2.87627921,1219.9,1219.8,1.616]
[1672756885195,7.87627921,1219.9,1219.8,1.616]
[1672756885580,14.83687,1219.9,1219.8,1.616]
[1672756885846,8.67589131,1219.9,1219.8,1.616]
[1672756886026,5.0,1219.9,1219.8,1.616]
[1672756886352,8.67589131,1219.9,1219.8,1.616]
[1672756886497,5.0,1219.9,1219.8,21.29134]
[1672756886710,5.0,1219.9,1219.8,21.39034]
[1672756887246,8.67589131,1219.9,1219.8,11.55267]
[1672756887456,5.0,1219.9,1219.8,11.55267]
[1672756888186,5.0,1219.9,1219.8,21.39034]
[1672756888560,5.0,1219.9,1219.8,11.55267]
[1672756889921,5.0,1219.9,1219.8,21.39034]
[1672756890284,5.0,1219.9,1219.8,11.55267]
[1672756891551,8.67589131,1219.9,1219.8,11.55267]
[1672756892132,8.67589131,1219.9,1219.8,21.39034]
[1672756893463,8.67589131,1219.9,1219.8,31.22801]
[1672756894011,9.30751123,1219.9,1219.8,32.84401]
[1672756894195,5.0,1219.9,1219.8,23.00634]
[1672756894408,8.68387722,1219.9,1219.8,23.00634]
[1672756894671,9.30751123,1219.9,1219.8,23.00634]
[1672756895759,8.68399422,1219.9,1219.8,32.84401]
[1672756895982,8.68446377,1219.9,1219.8,37.112185]
[1672756896427,8.68446377,1219.9,1219.8,37.60598703]
[1672756896647,3.0700147,1219.9,1219.8,43.37084817]
[1672756899247,3.1360147,1220.0,1219.8,43.37084817]
[1672756899599,3.0700147,1220.0,1219.9,32.72961]
[1672756899770,3.0700147,1220.0,1219.9,38.14792182]
[1672756900549,3.68446377,1220.0,1219.9,1.715]
[1672756900706,3.68446377,1220.0,1219.9,21.28974]
[1672756900908,3.68446377,1220.0,1219.9,21.38874]
[1672756901591,3.68446377,1220.0,1219.9,1.715]
[1672756901779,4.30751123,1220.0,1219.9,11.45287]
[1672756901991,4.30751123,1220.0,1219.9,11.55187]
[1672756902230,3.68246363,1220.0,1219.9,31.22561]
[1672756902858,3.68246363,1220.0,1219.9,35.493491]
[1672756903008,4.09337512,1220.1,1219.9,35.98729303]
[1672756903215,4.02737512,1220.1,1220.0,1.616]
[1672756903501,4.65242272,1220.1,1220.0,31.12418]
[1672756903677,4.02663549,1220.1,1220.0,32.83918]
[1672756903867,0.34491149,1220.1,1220.0,32.83918]
[1672756904291,4.02656155,1220.1,1220.0,32.83918]
[1672756904500,4.02656155,1220.1,1220.0,41.25564614]
[1672756904501,4.02653071,1220.1,1220.0,41.25564614]
[1672756904724,4.02653071,1220.1,1220.0,42.87164614]
[1672756904725,0.34491149,1220.1,1220.0,42.87164614]
[1672756904904,1.49e-06,1220.1,1220.0,57.49678677]
[1672756905113,1.49e-06,1220.1,1220.0,50.84544817]
[1672756905744,1.49e-06,1220.1,1220.0,43.58044817]
[1672756905963,1.49e-06,1220.1,1220.0,43.35044817]
[1672756906433,1.49e-06,1220.1,1220.0,33.51438817]
[1672756906621,1.49e-06,1220.1,1220.0,43.35044817]
[1672756906832,3.06755208,1220.2,1220.0,43.35044817]
[1672756907044,3.06755208,1220.2,1220.1,3.22]
[1672756907274,3.06755208,1220.2,1220.1,27.22434482]
[1672756907448,3.06755208,1220.2,1220.1,27.32334482]
[1672756907844,3.63239007,1220.2,1220.1,27.32334482]
[1672756908058,0.56483799,1220.2,1220.1,27.32334482]
[1672756908492,0.56483799,1220.2,1220.1,35.55459482]
[1672756908493,4.24645721,1220.2,1220.1,35.55459482]
[1672756908923,3.62822967,1220.2,1220.1,35.55459482]
[1672756909317,4.24352967,1220.2,1220.1,1.715]
[1672756909534,4.86175721,1220.2,1220.1,1.616]
[1672756909861,4.86175721,1220.2,1220.0,11.45185]
[1672756910111,3.68161922,1220.1,1220.0,1.715]
[1672756910322,3.68161922,1220.1,1220.0,1.616]
[1672756911790,23.97801123,1220.1,1219.9,1.715]
[1672756911980,3.67607305,1220.0,1219.9,1.616]
[1672756913055,13.51213305,1220.0,1219.9,1.616]
[1672756913221,14.12753305,1220.0,1219.9,1.616]
[1672756913630,14.12773216,1220.0,1219.9,1.616]
[1672756914705,16.45146,1220.0,1219.9,1.616]
[1672756914914,14.12780513,1220.0,1219.9,1.616]
[1672756915375,14.12776068,1220.0,1219.9,1.616]
[1672756915593,2.5444,1220.0,1219.9,1.616]
[1672756915761,6.21895492,1220.0,1219.9,1.616]
[1672756916372,2.5424,1220.0,1219.9,1.616]
[1672756916584,6.21903703,1220.0,1219.9,1.616]
[1672756916793,3.67663572,1220.0,1219.9,2.932859]
[1672756917126,5.08360644,1220.0,1219.9,40.31813217]
[1672756917338,5.08360644,1220.0,1219.9,39.92333014]
[1672756917542,0.066,1220.1,1219.9,39.92333014]
[1672756917764,17.14545669,1220.3,1220.0,4.14886114]
[1672756917765,3.67555669,1220.3,1220.0,4.14886114]
[1672756917956,3.75419441,1220.4,1220.2,4.832]
[1672756918168,3.68819441,1220.4,1220.3,11.44964]
[1672756918410,3.68819441,1220.4,1220.3,11.54864]
[1672756919682,3.69019441,1220.4,1220.3,11.54564]
[1672756919848,3.69019441,1220.4,1220.3,11.54864]
[1672756919849,3.68819441,1220.4,1220.3,11.54864]
[1672756920746,3.68819441,1220.4,1220.3,21.38228]
[1672756920956,3.68819441,1220.4,1220.3,25.648922]
[1672756921121,0.01263772,1220.4,1220.3,25.648922]
[1672756921336,0.01263772,1220.4,1220.3,35.482562]
[1672756922211,0.01263772,1220.4,1220.3,25.648922]
[1672756922429,0.01263772,1220.4,1220.3,37.098562]
[1672756922957,4.27165605,1220.6,1220.4,6.0]
[1672756923101,4.27165605,1220.6,1220.4,12.0098562]
[1672756923102,3.67555669,1220.5,1220.4,12.0098562]
[1672756923309,3.67555669,1220.5,1220.4,7.6258562]
[1672756923644,3.67555669,1220.5,1220.4,17.4586962]
[1672756923874,3.67555669,1220.5,1220.4,27.2915362]
[1672756924272,3.67555669,1220.5,1220.4,17.4586962]
[1672756924653,3.67555669,1220.5,1220.4,1.715]
[1672756924800,3.67555669,1220.5,1220.4,1.616]
[1672756925701,3.67555669,1220.5,1220.4,11.44884]
[1672756925916,3.67555669,1220.5,1220.4,11.54784]
[1672756927128,4.33765605,1220.6,1220.4,11.54784]
[1672756927466,4.27165605,1220.6,1220.4,33.4009982]
[1672756927797,4.27165605,1220.6,1220.4,23.5681582]
[1672756928005,4.27165605,1220.6,1220.4,1.715]
[1672756928327,3.67555669,1220.5,1220.4,1.616]
[1672756928686,3.67555669,1220.5,1220.3,1.712]
[1672756928687,13.50758669,1220.5,1220.3,1.712]
[1672756928922,23.33961669,1220.5,1220.3,1.613]
[1672756929363,23.33961669,1220.5,1220.2,1.715]
[1672756929364,23.34123669,1220.4,1220.2,1.715]
[1672756929533,3.67555669,1220.3,1220.2,1.616]
[1672756929746,14.18959669,1220.4,1220.2,1.616]
[1672756929948,14.12359669,1220.4,1220.2,1.616]
[1672756930283,33.78927669,1220.4,1220.2,1.616]
[1672756930511,4.29075669,1220.4,1220.2,1.616]
[1672756930684,4.29075669,1220.4,1220.2,21.28485]
[1672756930888,4.29075669,1220.4,1220.2,31.2183]
[1672756931118,4.29075669,1220.4,1220.2,21.38385]
[1672756931119,0.6152,1220.4,1220.2,21.38385]
[1672756931313,0.6152,1220.4,1220.3,1.616]
[1672756931314,4.29075669,1220.4,1220.3,1.616]
[1672756932609,17.12359669,1220.4,1220.3,1.616]
[1672756933469,7.29075669,1220.4,1220.3,1.616]
[1672756935128,7.29075669,1220.4,1220.3,11.44964]
[1672756935312,7.29075669,1220.4,1220.3,1.715]
[1672756935524,7.29075669,1220.4,1220.3,1.616]
[1672756936374,7.29075669,1220.4,1220.3,4.899323]
[1672756936585,4.35665669,1220.5,1220.3,34.400243]
[1672756936896,4.35665669,1220.5,1220.4,21.28168]
[1672756936897,4.29065669,1220.5,1220.4,21.28168]
[1672756937128,4.29065669,1220.5,1220.4,21.38068]
[1672756937343,4.29122182,1220.5,1220.4,21.38068]
[1672756937569,3.67612182,1220.5,1220.4,21.38068]
[1672756937970,3.67612182,1220.5,1220.4,11.54784]
[1672756938186,3.67612182,1220.5,1220.4,32.82952]
[1672756938354,3.67612182,1220.5,1220.4,36.2792683]
[1672756939264,3.67612182,1220.5,1220.4,32.82952]
[1672756939944,17.00152182,1220.6,1220.4,32.82952]
[1672756940164,3.67612182,1220.5,1220.4,11.54784]
[1672756940308,3.67612182,1220.5,1220.4,13.15584]
[1672756940513,3.67612182,1220.5,1220.4,37.0211072]
[1672756940832,17.00152182,1220.6,1220.4,37.0211072]
[1672756941076,16.93552182,1220.6,1220.5,1.616]
[1672756941291,4.29122182,1220.6,1220.5,31.11209]
[1672756941509,4.49086152,1220.7,1220.5,36.97595114]
[1672756941720,4.42486152,1220.7,1220.6,3.216]
[1672756941938,4.42486152,1220.7,1220.6,32.70969]
[1672756942111,4.42486152,1220.7,1220.6,32.80869]
[1672756942307,4.42486152,1220.7,1220.6,22.97746]
[1672756942515,4.42486152,1220.7,1220.6,7.59139712]
[1672756942727,4.42302195,1220.7,1220.6,3.265]
[1672756942939,4.42302195,1220.7,1220.6,12.99723]
[1672756943212,4.42302195,1220.7,1220.6,3.265]
[1672756943352,4.42302195,1220.7,1220.6,3.166]
[1672756944527,0.7487397,1220.7,1220.6,3.166]
[1672756944967,5.03688917,1220.7,1220.6,3.166]
[1672756945580,6.53015009,1220.7,1220.6,1.616]
[1672756945786,26.80599009,1220.7,1220.5,1.613]
[1672756945993,3.67378012,1220.6,1220.5,1.613]
[1672756947662,3.67378012,1220.6,1220.5,21.27706]
[1672756948038,3.67378012,1220.6,1220.5,21.37606]
[1672756948227,3.67378012,1220.6,1220.5,32.67170751]
[1672756949358,5.71788917,1220.7,1220.5,21.37606]
[1672756949550,5.71788917,1220.7,1220.5,1.712]
[1672756949551,4.28814947,1220.6,1220.5,1.712]
[1672756949762,4.28814947,1220.6,1220.5,1.613]
[1672756953441,4.28814947,1220.6,1220.5,11.44503]
[1672756953686,4.28814947,1220.6,1220.5,21.37606]
[1672756953947,4.28814947,1220.6,1220.5,31.20809]
[1672756954283,4.28814947,1220.6,1220.5,21.37606]
[1672756954954,4.88884797,1220.6,1220.5,21.37606]
[1672756955158,4.88884797,1220.6,1220.5,11.54403]
[1672756955575,5.68430494,1220.6,1220.5,1.712]
[1672756955919,5.68430494,1220.6,1220.5,21.27706]
[1672756956084,5.68430494,1220.6,1220.5,21.37606]
[1672756957240,5.68430494,1220.6,1220.5,11.54403]
[1672756957658,5.68430494,1220.6,1220.5,1.712]
[1672756957907,5.68430494,1220.6,1220.5,11.44503]
[1672756958121,5.68430494,1220.6,1220.5,11.54403]
[1672756959490,36.19285356,1220.6,1220.5,0.099]
[1672756959717,29.97672356,1220.6,1220.3,8.7788]
[1672756959853,4.29813903,1220.4,1220.3,18.61229]
[1672756960227,4.29813903,1220.4,1220.3,21.87293203]
[1672756960395,4.29813903,1220.4,1220.3,35.03885423]
[1672756961274,4.29813903,1220.4,1220.3,36.1560522]
[1672756961428,4.29813903,1220.4,1220.3,36.64985423]
[1672756962111,4.36413903,1220.5,1220.3,40.30491334]
[1672756962325,3.68399633,1220.4,1220.3,32.9320522]
[1672756962539,4.29813903,1220.5,1220.3,37.7790522]
[1672756962540,3.74999633,1220.5,1220.3,37.7790522]
[1672756962754,3.74999633,1220.5,1220.4,4.837]
[1672756962755,3.68399633,1220.5,1220.4,4.837]
[1672756962961,3.68399633,1220.5,1220.4,38.11242522]
[1672756963269,3.68399633,1220.5,1220.4,38.21142522]
[1672756964492,3.68399633,1220.5,1220.4,38.20897727]
[1672756964749,4.96483753,1220.6,1220.4,38.20897727]
[1672756964958,4.89883753,1220.6,1220.5,3.219]
[1672756965286,4.89883753,1220.6,1220.5,22.88306]
[1672756965287,0.6006985,1220.6,1220.5,22.88306]
[1672756965484,0.6006985,1220.6,1220.5,22.98206]
[1672756965696,0.6006985,1220.6,1220.5,13.15003]
[1672756965859,17.27210523,1220.6,1220.5,0.099]
[1672756966055,35.10333523,1220.6,1220.4,1.616]
[1672756966264,35.71843523,1220.6,1220.4,1.616]
[1672756966684,5.07717673,1220.5,1220.4,1.616]
[1672756967161,10.07717673,1220.5,1220.4,1.616]